Workbook

Sheet Лист1
A1: Школа | C1: МОБУ Явгильдинская ООШ | F1: Утвердил: | G1: должность | H1: директор
A2: Типовое примерное меню приготавливаемых блюд | G2: фамилия | H2: Андерзянов И.Р.
A3: Возрастная категория | E3: 7-11 лет | G3: дата | J3: 2025
H4: день | I4: месяц | J4: год
A5: Неделя | B5: День недели | C5: Прием пищи | D5: Раздел меню | E5: Блюда | F5: Вес блюда, г | G5: Белки | H5: Жиры | I5: Углеводы | J5: Калорийность | K5: № рецептуры | L5: Цена
A6: 1 | B6: 1 | C6: Завтрак | D6: фрукт | E6: ='[1]ОВЗ на 121,66'!B8 -> Салат из белокочанной капусты, моркови и кукурузы | F6: 80 | G6: 88 | H6: 1.9 | I6: 5.7 | J6: 7.3 | K6: ='[1]ОВЗ на 121,66'!H8 -> 88 | L6: 26
D7: гор.блюдо | E7: Каша гречневая вязкая | F7: 250 | G7: 229 | H7: 8 | I7: 8.2 | J7: 35 | K7: №195 | L7: 25
D8: гор.напиток | E8: Чай с сахаром и с лимоном | F8: 200 | G8: 35 | H8: 0.1 | I8: 0 | J8: 9.1 | K8: №300 | L8: 10
D9: хлеб | E9: Хлеб пшеничный обогащенный витаминами для детского питания | F9: 50 | G9: 130 | H9: 4 | I9: 0.5 | J9: 27.5 | K9: №420/06 | L9: 10.09
F10: 100 | G10: 47 | H10: 0 | I10: 0 | J10: 10.8
D13: итого | F13: =SUM(F6:F12) -> 680 | G13: =SUM(G6:G12) -> 529 | H13: =SUM(H6:H12) -> 14 | I13: =SUM(I6:I12) -> 14.4 | J13: =SUM(J6:J12) -> 89.7 | L13: =SUM(L6:L12) -> 71.09
D23: итого | F23: =SUM(F14:F22) -> 0 | G23: =SUM(G14:G22) -> 0 | H23: =SUM(H14:H22) -> 0 | I23: =SUM(I14:I22) -> 0 | J23: =SUM(J14:J22) -> 0 | L23: =SUM(L14:L22) -> 0
A24: =A6 -> 1 | B24: =B6 -> 1 | C24: Итого за день: | F24: =F13+F23 -> 680 | G24: =G13+G23 -> 529 | H24: =H13+H23 -> 14 | I24: =I13+I23 -> 14.4 | J24: =J13+J23 -> 89.7 | L24: =L13+L23 -> 71.09
A25: 1 | B25: 2 | C25: Завтрак | D25: гор.блюдо | E25: суп -лапша домашняя | F25: 250 | G25: 8.5 | H25: 7.3 | I25: 6.1 | J25: 162 | K25: №68 | L25: 16
E26: компот из свежих плодов | F26: 200 | G26: 3 | H26: 0.1 | I26: 13 | J26: 121 | K26: №310 | L26: 35
D27: гор.напиток | E27: Хлеб пшеничный обогащенный витаминами для детского питания | F27: 50 | G27: 0 | H27: 0 | I27: 27.5 | J27: 130 | K27: №420/06 | L27: 9
D28: хлеб | E28: Яблоко | F28: 100 | G28: 70 | H28: 3.7 | I28: 17.7 | J28: 70 | K28: №11/26 | L28: 11.09
D32: итого | F32: =SUM(F25:F31) -> 600 | G32: =SUM(G25:G31) -> 81.5 | H32: =SUM(H25:H31) -> 11.1 | I32: =SUM(I25:I31) -> 64.3 | J32: =SUM(J25:J31) -> 483 | L32: =SUM(L25:L31) -> 71.09
D42: итого | F42: =SUM(F33:F41) -> 0 | G42: =SUM(G33:G41) -> 0 | H42: =SUM(H33:H41) -> 0 | I42: =SUM(I33:I41) -> 0 | J42: =SUM(J33:J41) -> 0 | L42: =SUM(L33:L41) -> 0
A43: =A25 -> 1 | B43: =B25 -> 2 | C43: Итого за день: | F43: =F32+F42 -> 600 | G43: =G32+G42 -> 81.5 | H43: =H32+H42 -> 11.1 | I43: =I32+I42 -> 64.3 | J43: =J32+J42 -> 483 | L43: =L32+L42 -> 71.09
A44: 1 | B44: 3 | C44: Завтрак | D44: гор.блюдо | E44: Тефтели с рисом | F44: 90 | G44: 10.3 | H44: 10.4 | I44: 8.2 | J44: 165 | K44: №462 | L44: 16
D45: гор.блюдо | E45: Каша молочная Артек с маслом | F45: 220 | G45: 7 | H45: 8.3 | I45: 25 | J45: 251 | K45: №195 | L45: 23.09
D46: гор.напиток | E46: КИСЕЛЬ | F46: 200 | G46: 0 | H46: 0 | I46: 8 | J46: 76 | K46: №324 | L46: 22
D47: хлеб | E47: Хлеб пшеничный обогащенный витаминами для детского питания | F47: 50 | G47: 4 | H47: 0.5 | I47: 27.5 | J47: 130 | K47: №420/06 | L47: 10
D51: итого | F51: =SUM(F44:F50) -> 560 | G51: =SUM(G44:G50) -> 21.3 | H51: =SUM(H44:H50) -> 19.2 | I51: =SUM(I44:I50) -> 68.7 | J51: =SUM(J44:J50) -> 622 | L51: =SUM(L44:L50) -> 71.09
D61: итого | F61: =SUM(F52:F60) -> 0 | G61: =SUM(G52:G60) -> 0 | H61: =SUM(H52:H60) -> 0 | I61: =SUM(I52:I60) -> 0 | J61: =SUM(J52:J60) -> 0 | L61: =SUM(L52:L60) -> 0
A62: =A44 -> 1 | B62: =B44 -> 3 | C62: Итого за день: | F62: =F51+F61 -> 560 | G62: =G51+G61 -> 21.3 | H62: =H51+H61 -> 19.2 | I62: =I51+I61 -> 68.7 | J62: =J51+J61 -> 622 | L62: =L51+L61 -> 71.09
A63: 1 | B63: 4 | C63: Завтрак | D63: гор.блюдо | E63: Суп картофельный с бобовыми и гренками | F63: 250 | G63: 6.1 | H63: 4 | I63: 25.9 | J63: 25.9 | K63: №65 | L63: 26
E64: Салат из свеклы | F64: 80 | G64: 1.1 | H64: 6.6 | I64: 5.3 | J64: 5.3 | K64: №25 | L64: 6.5
D65: гор.напиток | E65: Компот из плодов или ягод сушеных | F65: 200 | G65: 1 | H65: 0.1 | I65: 32.4 | J65: 32.4 | K65: №309 | L65: 13
D66: хлеб | E66: Хлеб пшеничный и ржанной обогащенный витаминами для детского питания | F66: 50 | G66: 4 | H66: 0.8 | I66: 27 | J66: 27 | K66: №420/06 | L66: 11.09
E67: Яблоко | F67: 100 | G67: 2 | H67: 1 | I67: 24 | J67: 24 | K67: №107 | L67: 14.5
D70: итого | F70: =SUM(F63:F69) -> 680 | G70: =SUM(G63:G69) -> 14.2 | H70: =SUM(H63:H69) -> 12.5 | I70: =SUM(I63:I69) -> 114.6 | J70: =SUM(J63:J69) -> 114.6 | L70: =SUM(L63:L69) -> 71.09
D80: итого | F80: =SUM(F71:F79) -> 0 | G80: =SUM(G71:G79) -> 0 | H80: =SUM(H71:H79) -> 0 | I80: =SUM(I71:I79) -> 0 | J80: =SUM(J71:J79) -> 0 | L80: =SUM(L71:L79) -> 0
A81: =A63 -> 1 | B81: =B63 -> 4 | C81: Итого за день: | F81: =F70+F80 -> 680 | G81: =G70+G80 -> 14.2 | H81: =H70+H80 -> 12.5 | I81: =I70+I80 -> 114.6 | J81: =J70+J80 -> 114.6 | L81: =L70+L80 -> 71.09
A82: 1 | B82: 5 | C82: Завтрак | E82: Гуляш мясной | F82: 90 | G82: 19.7 | H82: 12.5 | I82: 11.9 | J82: 174 | K82: №290 | L82: 30
D83: гор.блюдо | E83: Макароны отварные | F83: 225 | G83: 3.51 | H83: 5.9 | I83: 21.56 | J83: 177 | K83: №138/21 | L83: 20
D84: гор.напиток | E84: Компот из свежих плодов | F84: 200 | G84: 3 | H84: 3 | I84: 17 | J84: 101 | K84: №311 | L84: 10.09
D85: хлеб | E85: Хлеб пшеничный обогащенный витаминами для детского питания | F85: 50 | G85: 4 | H85: 0.5 | I85: 27.5 | J85: 130 | K85: №420/06 | L85: 11
D89: итого | F89: =SUM(F82:F88) -> 565 | G89: =SUM(G82:G88) -> 30.21 | H89: =SUM(H82:H88) -> 21.9 | I89: =SUM(I82:I88) -> 77.96 | J89: =SUM(J82:J88) -> 582 | L89: =SUM(L82:L88) -> 71.09
D99: итого | F99: =SUM(F90:F98) -> 0 | G99: =SUM(G90:G98) -> 0 | H99: =SUM(H90:H98) -> 0 | I99: =SUM(I90:I98) -> 0 | J99: =SUM(J90:J98) -> 0 | L99: =SUM(L90:L98) -> 0
A100: =A82 -> 1 | B100: =B82 -> 5 | C100: Итого за день: | F100: =F89+F99 -> 565 | G100: =G89+G99 -> 30.21 | H100: =H89+H99 -> 21.9 | I100: =I89+I99 -> 77.96 | J100: =J89+J99 -> 582 | L100: =L89+L99 -> 71.09
A101: 2 | B101: 1 | C101: Завтрак | E101: Тефтели с рисом | F101: 90 | G101: 69 | H101: 11.1 | I101: 8.8 | J101: 165 | K101: №368 | L101: 8.8
D102: гор.блюдо | E102: Каша артек молочная | F102: 220 | G102: 7.2 | H102: 7.2 | I102: 36.8 | J102: 242 | K102: №195 | L102: 16.59
D103: гор.напиток | E103: Чай с лимоном и сахаром | F103: 200 | G103: 0.1 | H103: 0 | I103: 9.1 | J103: 52 | K103: №300 | L103: 9.1
D104: хлеб | E104: Хлеб пшеничный обогащенный витаминами для детского питания | F104: 50 | G104: 4 | H104: 0 | I104: 13.3 | J104: 130 | K104: №420/06 | L104: 27.5
D105: фрукты | E105: Фрукт свежий | F105: 100 | G105: 0.1 | H105: 0 | I105: 9.1 | J105: 37 | K105: №107 | L105: 9.1
D108: итого | F108: =SUM(F101:F107) -> 660 | G108: =SUM(G101:G107) -> 80.4 | H108: =SUM(H101:H107) -> 18.3 | I108: =SUM(I101:I107) -> 77.1 | J108: =SUM(J101:J107) -> 626 | L108: =SUM(L101:L107) -> 71.09
D118: итого | F118: =SUM(F109:F117) -> 0 | G118: =SUM(G109:G117) -> 0 | H118: =SUM(H109:H117) -> 0 | I118: =SUM(I109:I117) -> 0 | J118: =SUM(J109:J117) -> 0 | L118: =SUM(L109:L117) -> 0
A119: =A101 -> 2 | B119: =B101 -> 1 | C119: Итого за день: | F119: =F108+F118 -> 660 | G119: =G108+G118 -> 80.4 | H119: =H108+H118 -> 18.3 | I119: =I108+I118 -> 77.1 | J119: =J108+J118 -> 626 | L119: =L108+L118 -> 71.09
A120: 2 | B120: 2 | C120: Завтрак | D120: гор.блюдо | E120: Борщ с капустой и картофелем | F120: 250 | G120: 3 | H120: 7 | I120: 13 | J120: 119 | K120: №110 | L120: 19.49
D121: гор.напиток | E121: Чай с лимоном ис сахаром | F121: 200 | G121: 0.2 | H121: 0.04 | I121: 2 | J121: 41 | K121: №300 | L121: 9.1
D122: хлеб | E122: Хлеб пшеничный обогащенный витаминами для детского питания | F122: 50 | G122: 0.2 | H122: 0.5 | I122: 27.5 | J122: 130 | K122: №420/06 | L122: 27.5
E123: Фрукт свежий | F123: 100 | G123: 0.4 | H123: 0.4 | I123: 9.8 | J123: 47 | K123: №107 | L123: 15
D127: итого | F127: =SUM(F120:F126) -> 600 | G127: =SUM(G120:G126) -> 3.8 | H127: =SUM(H120:H126) -> 7.94 | I127: =SUM(I120:I126) -> 52.3 | J127: =SUM(J120:J126) -> 337 | L127: =SUM(L120:L126) -> 71.09
D137: итого | F137: =SUM(F128:F136) -> 0 | G137: =SUM(G128:G136) -> 0 | H137: =SUM(H128:H136) -> 0 | I137: =SUM(I128:I136) -> 0 | J137: =SUM(J128:J136) -> 0 | L137: =SUM(L128:L136) -> 0
A138: =A120 -> 2 | B138: =B120 -> 2 | C138: Итого за день: | F138: =F127+F137 -> 600 | G138: =G127+G137 -> 3.8 | H138: =H127+H137 -> 7.94 | I138: =I127+I137 -> 52.3 | J138: =J127+J137 -> 337 | L138: =L127+L137 -> 71.09
A139: 2 | B139: 3 | C139: Завтрак | D139: гор.блюдо | E139: Тефтели с рисом | F139: 90 | G139: 3.1 | H139: 14.2 | I139: 17.1 | J139: 195 | K139: №462 | L139: 21.99
E140: Каша рисовая молочная | F140: 220 | G140: 4.5 | H140: 7.3 | I140: 27.6 | J140: 196 | K140: №207 | L140: 27.6
D141: гор.напиток | E141: Компот из свежих плодов | F141: 200 | G141: 3 | H141: 3 | I141: 17 | J141: 101 | K141: №311 | L141: 17
D142: хлеб | E142: Хлеб пшеничный обогащенный витаминами для детского питания | F142: 50 | G142: 4 | H142: 0.5 | I142: 27.5 | J142: 130 | K142: №420/06 | L142: 4.5
D147: итого | F147: =SUM(F139:F146) -> 560 | G147: =SUM(G139:G146) -> 14.6 | H147: =SUM(H139:H146) -> 25 | I147: =SUM(I139:I146) -> 89.2 | J147: =SUM(J139:J146) -> 622 | L147: =SUM(L139:L146) -> 71.09
D157: итого | F157: =SUM(F148:F156) -> 0 | G157: =SUM(G148:G156) -> 0 | H157: =SUM(H148:H156) -> 0 | I157: =SUM(I148:I156) -> 0 | J157: =SUM(J148:J156) -> 0 | L157: =SUM(L148:L156) -> 0
A158: =A139 -> 2 | B158: =B139 -> 3 | C158: Итого за день: | F158: =F147+F157 -> 560 | G158: =G147+G157 -> 14.6 | H158: =H147+H157 -> 25 | I158: =I147+I157 -> 89.2 | J158: =J147+J157 -> 622 | L158: =L147+L157 -> 71.09
A159: 2 | B159: 4 | C159: Завтрак | D159: гор.блюдо | E159: Суп картофельный с крупой | F159: 250 | G159: 7.8 | H159: 15.4 | I159: 25 | J159: 127 | K159: №138 | L159: 25
D160: гор.напиток | E160: Чай с лимоном и с сахаром | F160: 200 | G160: 0 | H160: 0 | I160: 9.3 | J160: 37 | K160: №686 | L160: 9.3
D161: хлеб | E161: Хлеб пшеничный обогащенный витаминами для детского питания | F161: 50 | G161: 4 | H161: 0.5 | I161: 27.5 | J161: 130 | K161: №420/06 | L161: 27.5
E162: Яблоко | F162: 100 | G162: 0.4 | H162: 0.4 | I162: 10.2 | J162: 70 | K162: №107 | L162: 9.29
D165: итого | F165: =SUM(F159:F164) -> 600 | G165: =SUM(G159:G164) -> 12.2 | H165: =SUM(H159:H164) -> 16.3 | I165: =SUM(I159:I164) -> 72 | J165: =SUM(J159:J164) -> 364 | L165: =SUM(L159:L164) -> 71.09
D175: итого | F175: =SUM(F166:F174) -> 0 | G175: =SUM(G166:G174) -> 0 | H175: =SUM(H166:H174) -> 0 | I175: =SUM(I166:I174) -> 0 | J175: =SUM(J166:J174) -> 0 | L175: =SUM(L166:L174) -> 0
A176: =A159 -> 2 | B176: =B159 -> 4 | C176: Итого за день: | F176: =F165+F175 -> 600 | G176: =G165+G175 -> 12.2 | H176: =H165+H175 -> 16.3 | I176: =I165+I175 -> 72 | J176: =J165+J175 -> 364 | L176: =L165+L175 -> 71.09
A177: 2 | B177: 5 | C177: Завтрак | D177: гор.блюдо | E177: Винегрет овощной | F177: 80 | G177: 1 | H177: 1.9 | I177: 5.7 | J177: 44 | K177: №42 | L177: 16
E178: Каша молочная "Дружба" | F178: 250 | G178: 10 | H178: 10 | I178: 51.1 | J178: 336 | K178: №195 | L178: 17
D179: гор.напиток | E179: Какао с молоком | F179: 200 | G179: 0 | H179: 0 | I179: 20 | J179: 76 | K179: №310 | L179: 11
D180: хлеб | E180: Хлеб пшеничный обогащенный витаминами для детского питания | F180: 50 | G180: 4 | H180: 0.5 | I180: 27.5 | J180: 130 | K180: №420/06 | L180: 11.09
D181: фрукты | E181: Фрукты свежие | F181: 100 | G181: 4 | H181: 4 | I181: 10 | J181: 47 | K181: №107 | L181: 16
D184: итого | F184: =SUM(F177:F183) -> 680 | G184: =SUM(G177:G183) -> 19 | H184: =SUM(H177:H183) -> 16.4 | I184: =SUM(I177:I183) -> 114.3 | J184: =SUM(J177:J183) -> 633 | L184: =SUM(L177:L183) -> 71.09
D194: итого | F194: =SUM(F185:F193) -> 0 | G194: =SUM(G185:G193) -> 0 | H194: =SUM(H185:H193) -> 0 | I194: =SUM(I185:I193) -> 0 | J194: =SUM(J185:J193) -> 0 | L194: =SUM(L185:L193) -> 0
A195: =A177 -> 2 | B195: =B177 -> 5 | C195: Итого за день: | F195: =F184+F194 -> 680 | G195: =G184+G194 -> 19 | H195: =H184+H194 -> 16.4 | I195: =I184+I194 -> 114.3 | J195: =J184+J194 -> 633 | L195: =L184+L194 -> 71.09
C196: Среднее значение за период: | F196: =(F24+F43+F62+F81+F100+F119+F138+F158+F176+F195)/(IF(F24=0,0,1)+IF(F43=0,0,1)+IF(F62=0,0,1)+IF(F81=0,0,1)+IF(F100=0,0,1)+IF(F119=0,0,1)+IF(F138=0,0,1)+IF(F158=0,0,1)+IF(F176=0,0,1)+IF(F195=0,0,1)) -> 618.5 | G196: =(G24+G43+G62+G81+G100+G119+G138+G158+G176+G195)/(IF(G24=0,0,1)+IF(G43=0,0,1)+IF(G62=0,0,1)+IF(G81=0,0,1)+IF(G100=0,0,1)+IF(G119=0,0,1)+IF(G138=0,0,1)+IF(G158=0,0,1)+IF(G176=0,0,1)+IF(G195=0,0,1)) -> 80.621 | H196: =(H24+H43+H62+H81+H100+H119+H138+H158+H176+H195)/(IF(H24=0,0,1)+IF(H43=0,0,1)+IF(H62=0,0,1)+IF(H81=0,0,1)+IF(H100=0,0,1)+IF(H119=0,0,1)+IF(H138=0,0,1)+IF(H158=0,0,1)+IF(H176=0,0,1)+IF(H195=0,0,1)) -> 16.264 | I196: =(I24+I43+I62+I81+I100+I119+I138+I158+I176+I195)/(IF(I24=0,0,1)+IF(I43=0,0,1)+IF(I62=0,0,1)+IF(I81=0,0,1)+IF(I100=0,0,1)+IF(I119=0,0,1)+IF(I138=0,0,1)+IF(I158=0,0,1)+IF(I176=0,0,1)+IF(I195=0,0,1)) -> 74.486 | J196: =(J24+J43+J62+J81+J100+J119+J138+J158+J176+J195)/(IF(J24=0,0,1)+IF(J43=0,0,1)+IF(J62=0,0,1)+IF(J81=0,0,1)+IF(J100=0,0,1)+IF(J119=0,0,1)+IF(J138=0,0,1)+IF(J158=0,0,1)+IF(J176=0,0,1)+IF(J195=0,0,1)) -> 447.33 | L196: =(L24+L43+L62+L81+L100+L119+L138+L158+L176+L195)/(IF(L24=0,0,1)+IF(L43=0,0,1)+IF(L62=0,0,1)+IF(L81=0,0,1)+IF(L100=0,0,1)+IF(L119=0,0,1)+IF(L138=0,0,1)+IF(L158=0,0,1)+IF(L176=0,0,1)+IF(L195=0,0,1)) -> 71.09
